bitfinex/quotes_BTCUSD_20230113
["timestamp","ask_amount","ask_price","bid_price","bid_amount"]
[1673640677226,0.0097357,19380.0,19379.0,2.70807198]
[1673640677468,0.0097357,19380.0,19379.0,2.47888079]
[1673640677704,0.0097357,19380.0,19379.0,2.38998079]
[1673640677943,0.0097357,19380.0,19379.0,2.23718713]
[1673640678197,0.07047352,19380.0,19379.0,0.621022]
[1673640678684,0.07047352,19380.0,19379.0,0.105]
[1673640679653,0.58646852,19380.0,19379.0,0.105]
[1673640681640,0.07047352,19380.0,19379.0,0.105]
[1673640682876,0.0097357,19380.0,19379.0,0.105]
[1673640683593,0.0097357,19380.0,19379.0,0.621022]
[1673640683836,0.0097357,19380.0,19379.0,1.16717364]
[1673640684076,0.0097357,19380.0,19379.0,2.06518049]
[1673640684548,0.0097357,19380.0,19379.0,2.16967261]
[1673640684550,0.0097357,19380.0,19379.0,2.83859028]
[1673640684794,0.0097357,19380.0,19379.0,2.99148445]
[1673640685043,0.0097357,19380.0,19379.0,2.22774348]
[1673640685536,0.0097357,19380.0,19379.0,1.84565812]
[1673640686061,0.0097357,19380.0,19379.0,2.46430165]
[1673640686281,0.00702719,19380.0,19379.0,1.84565812]
[1673640687039,0.00702719,19380.0,19379.0,1.93405812]
[1673640687533,0.00702719,19380.0,19379.0,2.48158696]
[1673640687782,0.0038047,19380.0,19379.0,2.02295812]
[1673640688030,0.0038047,19380.0,19379.0,2.99716697]
[1673640688271,0.0038047,19380.0,19379.0,2.02295812]
[1673640689282,0.0038047,19380.0,19379.0,2.32295812]
[1673640689789,0.01916866,19382.0,19379.0,3.92259967]
[1673640690039,0.01916866,19382.0,19381.0,0.72494873]
[1673640690285,0.01916866,19382.0,19381.0,3.41954955]
[1673640691340,6.866e-05,19382.0,19381.0,3.41954955]
[1673640691620,0.001216,19383.0,19381.0,3.41954955]
[1673640691621,0.001216,19383.0,19382.0,0.1]
[1673640691919,0.001216,19383.0,19382.0,2.84425082]
[1673640692186,0.001216,19383.0,19382.0,2.78589669]
[1673640692437,0.001216,19383.0,19382.0,3.48689669]
[1673640692689,0.01808224,19384.0,19382.0,4.56210554]
[1673640692945,0.01508377,19386.0,19383.0,1.40493367]
[1673640693246,0.22538871,19386.0,19385.0,0.45828833]
[1673640693486,0.07410827,19386.0,19385.0,1.365239]
[1673640693731,0.07022378,19386.0,19385.0,1.18441161]
[1673640694730,0.07022378,19386.0,19385.0,0.654862]
[1673640694986,0.01508377,19386.0,19385.0,1.24694295]
[1673640695236,0.01508377,19386.0,19385.0,2.62182203]
[1673640695237,0.01008377,19386.0,19385.0,2.62182203]
[1673640695481,0.01008377,19386.0,19385.0,1.99907223]
[1673640695728,0.01008377,19386.0,19385.0,2.39424923]
[1673640695980,0.01008377,19386.0,19385.0,1.88458764]
[1673640696238,0.01008377,19386.0,19385.0,0.654982]
[1673640696486,0.06636731,19386.0,19385.0,0.13912]
[1673640696728,0.06636731,19386.0,19385.0,0.29171205]
[1673640696972,0.06636731,19386.0,19385.0,0.13912]
[1673640697704,0.06636731,19386.0,19385.0,0.13899287]
[1673640697951,0.01008377,19386.0,19385.0,0.13899287]
[1673640698449,0.01008377,19386.0,19385.0,0.78313948]
[1673640699428,0.01008377,19386.0,19385.0,0.13899287]
[1673640699693,0.06260732,19386.0,19385.0,0.13899287]
[1673640699938,1.34903715,19386.0,19385.0,0.13899287]
[1673640700195,2.19969485,19386.0,19385.0,9.287e-05]
[1673640700441,0.15150972,19385.0,19381.0,0.00019]
[1673640700714,1.99400894,19384.0,19381.0,0.00019]
[1673640700968,0.324425,19383.0,19381.0,0.00019]
[1673640701220,0.1,19385.0,19383.0,0.50161711]
[1673640701961,0.012,19384.0,19383.0,0.50161711]
[1673640702213,0.15553964,19385.0,19381.0,0.00019]
[1673640702214,0.67140464,19385.0,19381.0,0.00019]
[1673640702459,0.0455924,19384.0,19383.0,0.045]
[1673640702714,0.5614814,19384.0,19383.0,0.045]
[1673640702961,0.6614814,19384.0,19383.0,0.045]
[1673640703462,0.6614814,19384.0,19380.0,0.24109205]
[1673640703725,0.6614814,19384.0,19378.0,1.72633687]
[1673640703726,0.51030494,19383.0,19378.0,0.96824897]
[1673640703966,1.66663694,19382.0,19378.0,0.73938705]
[1673640704220,0.21030494,19381.0,19378.0,0.73957705]
[1673640704465,0.72628194,19381.0,19378.0,0.73957705]
[1673640704749,0.72628194,19381.0,19378.0,0.73905705]
[1673640705009,0.25529314,19380.0,19378.0,0.19352205]
[1673640705255,0.0449882,19380.0,19378.0,0.57687217]
[1673640705512,1.044946,19381.0,19378.0,0.61787217]
[1673640705801,0.58367777,19381.0,19378.0,0.57687217]
[1673640706055,0.59767777,19381.0,19378.0,0.61768217]
[1673640706289,0.05364014,19380.0,19378.0,0.61716217]
[1673640706527,0.05364014,19380.0,19378.0,0.04074]
[1673640706776,0.05364014,19380.0,19376.0,1.31928534]
[1673640707028,0.21030494,19379.0,19377.0,0.0886]
[1673640707276,0.21030494,19379.0,19375.0,0.22886192]
[1673640707277,0.05936996,19378.0,19375.0,0.22886192]
[1673640707519,0.7857239,19378.0,19375.0,0.3324669]
[1673640707763,0.7857239,19378.0,19375.0,0.84426325]
[1673640708025,0.57541896,19378.0,19375.0,0.74065827]
[1673640708297,0.57541896,19378.0,19377.0,0.041]
[1673640708826,0.58841896,19378.0,19377.0,0.041]
[1673640709337,0.58841896,19378.0,19375.0,1.08679096]
[1673640709338,0.57541896,19378.0,19376.0,0.22886192]
[1673640709610,0.57541896,19378.0,19376.0,0.33243464]
[1673640709863,0.57541896,19378.0,19376.0,0.22886192]
[1673640710121,0.57541896,19378.0,19376.0,0.33352086]
[1673640710366,0.516029,19379.0,19377.0,0.22886192]
[1673640710624,0.56622571,19379.0,19377.0,0.22886192]
[1673640710868,0.56622571,19379.0,19376.0,1.13858069]
[1673640711109,0.013,19378.0,19376.0,1.17958069]
[1673640711356,0.56622571,19379.0,19376.0,1.13858069]
[1673640711609,0.57922571,19379.0,19377.0,0.041]
[1673640711855,0.56622571,19379.0,19376.0,0.833448]
[1673640712106,0.05398715,19378.0,19376.0,0.041]
[1673640712354,0.0475635,19377.0,19375.0,0.53399461]
[1673640712601,0.25786844,19377.0,19376.0,0.041]
[1673640712847,0.0475635,19377.0,19376.0,0.041]
[1673640713605,0.542048,19379.0,19376.0,0.041]
[1673640713854,0.57686139,19379.0,19376.0,1.0004278]
[1673640714110,0.57686139,19379.0,19376.0,0.89576787]
[1673640714372,0.57686139,19379.0,19376.0,0.8410171]
[1673640715115,0.58986139,19379.0,19376.0,1.03485386]
[1673640715365,0.58986139,19379.0,19377.0,0.15283676]
[1673640715615,0.57686139,19379.0,19377.0,0.15283676]
[1673640716105,0.014,19379.0,19377.0,1.24871042]
[1673640717101,0.05284213,19379.0,19377.0,1.09587366]
[1673640717345,0.06684213,19379.0,19377.0,1.13687366]
[1673640717863,0.05284213,19379.0,19377.0,1.09587366]
[1673640718383,0.06584213,19379.0,19377.0,1.13587366]
[1673640718888,0.34311852,19380.0,19377.0,1.13587366]
[1673640719132,0.34311852,19380.0,19377.0,1.28871042]
[1673640719379,0.00859734,19379.0,19377.0,1.13587366]
[1673640719886,0.00859734,19379.0,19377.0,1.09596668]
[1673640720135,0.33184013,19380.0,19377.0,1.09596668]
[1673640720379,0.34330741,19380.0,19377.0,1.24880344]
[1673640720620,0.00888004,19379.0,19377.0,1.24880344]
[1673640720868,0.00888004,19379.0,19377.0,1.09587366]
[1673640721112,0.02088004,19379.0,19377.0,1.09587366]
[1673640721360,0.00888004,19379.0,19377.0,1.24880344]
[1673640721615,0.522008,19380.0,19377.0,1.30380344]
[1673640721875,0.5104804,19380.0,19378.0,0.67044981]
[1673640722130,0.012,19379.0,19378.0,0.67044981]
[1673640722615,0.012,19379.0,19378.0,0.23125077]
[1673640722865,0.012,19379.0,19378.0,3.09234243]
[1673640722866,0.0047705,19379.0,19378.0,3.09234243]
[1673640723111,0.0047705,19379.0,19378.0,2.7882258]
[1673640723360,0.0047705,19379.0,19378.0,2.6997258]
[1673640723601,1.5092575,19380.0,19378.0,2.6997258]
[1673640723858,1.5092575,19380.0,19379.0,0.15274107]
[1673640724105,1.5092575,19380.0,19379.0,1.18478507]
[1673640724855,1.501,19380.0,19379.0,1.18504507]
[1673640725106,1.5,19380.0,19379.0,1.42402464]
[1673640725357,1.5,19380.0,19379.0,1.86840607]
[1673640725358,1.501,19380.0,19379.0,1.86840607]
[1673640725605,1.501,19380.0,19379.0,2.54637421]
[1673640725850,1.501,19380.0,19379.0,2.39372311]
[1673640726095,1.5,19380.0,19379.0,1.95190247]
[1673640726342,1.5,19380.0,19379.0,2.09099548]
[1673640726343,1.501,19380.0,19379.0,2.09099548]
[1673640726592,1.501,19380.0,19379.0,2.39300832]
[1673640726833,1.501,19380.0,19379.0,2.54565942]
[1673640727077,1.501,19380.0,19379.0,2.31659561]
[1673640727324,1.501,19380.0,19379.0,2.83261761]
[1673640727819,1.501,19380.0,19379.0,3.21403348]
[1673640728063,1.501,19380.0,19379.0,2.99715205]
[1673640729051,1.501,19380.0,19379.0,2.92099362]
[1673640729555,1.71130494,19380.0,19379.0,1.11335998]
[1673640729840,1.51083759,19380.0,19379.0,0.655282]
[1673640730090,1.51083759,19380.0,19379.0,0.13926]
[1673640732092,2.02683259,19380.0,19379.0,0.13926]
[1673640732337,2.54282759,19380.0,19379.0,0.13926]
[1673640732592,2.53299,19380.0,19379.0,0.13926]
[1673640732837,2.86628635,19380.0,19379.0,0.13926]
[1673640733086,2.76938835,19380.0,19379.0,0.13926]
[1673640733356,2.760517,19380.0,19379.0,0.13926]
[1673640733598,3.29537378,19380.0,19379.0,0.13926]
[1673640733885,3.30387378,19380.0,19379.0,0.13926]
[1673640734094,3.069017,19380.0,19379.0,0.13926]
[1673640734373,3.068017,19380.0,19379.0,0.00026]
[1673640735103,3.095017,19380.0,19379.0,0.01026]
[1673640737624,3.10428662,19380.0,19379.0,0.01026]
[1673640737872,2.80616241,19380.0,19379.0,0.01026]
[1673640738121,2.80461346,19380.0,19379.0,0.01026]
[1673640738362,2.795017,19380.0,19379.0,0.01026]
[1673640738608,2.803212,19380.0,19379.0,0.01026]
[1673640738849,2.795017,19380.0,19379.0,0.01026]
[1673640739097,0.1178761,19379.0,19378.0,0.15272753]
[1673640739348,1.8903671,19379.0,19378.0,0.15272753]
[1673640739602,1.0499201,19379.0,19378.0,0.53453477]
[1673640739847,1.0499201,19379.0,19378.0,0.53444175]
[1673640740101,1.0629201,19379.0,19378.0,0.53444175]
[1673640740885,1.0629201,19379.0,19378.0,0.44973823]
[1673640741132,1.0629201,19379.0,19378.0,0.29649266]
[1673640741634,1.0629201,19379.0,19378.0,0.38235858]
[1673640741877,1.0629201,19379.0,19378.0,0.44975994]
[1673640742374,1.0629201,19379.0,19378.0,0.15326728]
[1673640744913,1.0629201,19379.0,19378.0,0.3824516]
[1673640745160,1.0629201,19379.0,19378.0,0.38235858]
[1673640745408,0.02274,19379.0,19378.0,0.6032399]
[1673640745664,0.02274,19379.0,19378.0,1.23519268]
[1673640745924,0.02274,19379.0,19378.0,1.08225982]
[1673640746411,0.00974,19379.0,19378.0,1.59830882]
[1673640746657,0.01274,19379.0,19378.0,1.73730882]
[1673640747654,0.01274,19379.0,19378.0,1.87194195]
[1673640747911,0.01047379,19379.0,19378.0,2.38799095]
[1673640748161,0.01047379,19379.0,19378.0,2.84627928]
[1673640748403,0.01047379,19379.0,19378.0,2.70727928]
[1673640748404,0.00747379,19379.0,19378.0,2.70727928]
[1673640749456,0.01047379,19379.0,19378.0,2.84627928]
[1673640750881,0.01047379,19379.0,19378.0,2.84618626]
[1673640753126,0.02124605,19379.0,19378.0,2.01817371]
[1673640753376,0.02124605,19379.0,19378.0,2.01818467]
[1673640753845,0.02124605,19379.0,19378.0,1.50213567]
[1673640754318,0.01047379,19379.0,19378.0,1.95851657]
[1673640754570,0.01047379,19379.0,19378.0,2.98769769]
[1673640754822,0.01047379,19379.0,19378.0,2.56275859]
[1673640755793,0.01047379,19379.0,19378.0,3.02226104]
[1673640757259,0.01047379,19379.0,19378.0,2.56275859]
[1673640757787,1.25762287,19380.0,19378.0,2.56275859]
[1673640758041,1.25762287,19380.0,19379.0,0.68385119]
[1673640758266,1.25762287,19380.0,19379.0,2.23191719]
[1673640759210,1.25762287,19380.0,19379.0,2.69137041]
[1673640759446,1.25962287,19380.0,19379.0,2.83037041]
[1673640759680,1.25962287,19380.0,19379.0,2.37091719]
[1673640760470,1.25962287,19380.0,19379.0,2.75388208]
[1673640760709,1.25962287,19380.0,19379.0,2.75387855]
[1673640760952,1.25962287,19380.0,19379.0,2.37091719]
[1673640762173,1.25962287,19380.0,19379.0,1.23984215]
[1673640762421,1.26846959,19380.0,19379.0,0.74419048]
[1673640763419,1.26846959,19380.0,19379.0,0.43768058]
[1673640764147,1.26846959,19380.0,19379.0,0.74419048]
[1673640764391,1.26846959,19380.0,19379.0,0.51430805]
[1673640764621,1.26846959,19380.0,19379.0,0.67540976]
[1673640764875,1.26846959,19380.0,19379.0,0.43769801]
[1673640765109,1.77561787,19380.0,19379.0,0.29229673]
[1673640765344,2.10004287,19380.0,19379.0,0.29229673]
[1673640765606,2.61603787,19380.0,19379.0,0.29229673]
[1673640766122,2.62477826,19380.0,19379.0,0.29229673]
[1673640766871,2.30035326,19380.0,19379.0,0.29229673]
[1673640767132,2.62477826,19380.0,19379.0,0.139]
[1673640767380,2.61603787,19380.0,19379.0,0.139]
[1673640767649,2.29161287,19380.0,19379.0,0.139]
[1673640767890,2.80760787,19380.0,19379.0,0.139]
[1673640768148,3.13203287,19380.0,19379.0,0.29229673]
[1673640768632,3.14107901,19380.0,19379.0,0.139]
[1673640768890,3.14107901,19380.0,19379.0,0.29229673]
[1673640769122,2.81665401,19380.0,19379.0,0.29229673]
[1673640769380,4.46427262,19380.0,19379.0,0.139]
[1673640771090,3.14214303,19380.0,19379.0,0.139]
[1673640771336,3.14214303,19380.0,19379.0,0.13909301]
[1673640771597,3.04524503,19380.0,19379.0,0.139]
[1673640771834,2.81771803,19380.0,19379.0,0.139]
[1673640772329,1.81771803,19380.0,19379.0,0.139]
[1673640772822,2.14214303,19380.0,19379.0,0.139]
[1673640773323,1.30172303,19380.0,19379.0,0.29238974]
[1673640773581,0.25962287,19380.0,19379.0,0.71823139]
[1673640773850,0.25962287,19380.0,19379.0,1.82560298]
[1673640774081,0.23253364,19380.0,19379.0,1.85945221]
[1673640774331,0.23253364,19380.0,19379.0,2.31890543]
[1673640778581,0.23253364,19380.0,19379.0,2.83492743]
[1673640779847,0.23253364,19380.0,19379.0,2.37547421]
[1673640780077,0.23253364,19380.0,19379.0,2.28687421]
[1673640780797,0.23253364,19380.0,19379.0,1.59712755]
[1673640781055,0.24126468,19380.0,19379.0,1.59712755]
[1673640782253,0.23253364,19380.0,19379.0,1.59712755]
[1673640783047,0.23253364,19380.0,19379.0,1.87631651]
[1673640783304,0.23253364,19380.0,19379.0,1.90537661]
[1673640783541,0.23253364,19380.0,19379.0,1.39117262]
[1673640784279,0.13487393,19380.0,19379.0,1.39126563]
[1673640784510,0.13487393,19380.0,19379.0,2.06788723]
[1673640785250,0.13487393,19380.0,19379.0,2.5227332]
[1673640785731,0.13487393,19380.0,19379.0,2.98266429]
[1673640785974,0.13487393,19380.0,19379.0,2.5227332]
[1673640786972,0.13487393,19380.0,19379.0,2.98275153]
[1673640787217,0.13487393,19380.0,19379.0,2.89385153]
[1673640789165,0.51064493,19380.0,19379.0,2.89385153]
[1673640789396,0.51064493,19380.0,19379.0,2.37782953]
[1673640789935,0.51064493,19380.0,19379.0,1.91771819]
[1673640790185,0.51064493,19380.0,19379.0,1.91617627]
[1673640793449,0.51064493,19380.0,19379.0,1.91626928]
[1673640793697,0.51064493,19380.0,19379.0,2.37628761]
[1673640794194,0.45958044,19380.0,19379.0,2.37628761]
[1673640796671,0.45958044,19380.0,19379.0,1.91626928]
[1673640797658,1.031858,19383.0,19380.0,19.54041956]
[1673640797953,1.031858,19383.0,19382.0,0.38346155]
[1673640797954,1.04036416,19383.0,19382.0,0.38346155]
[1673640798718,0.52443616,19383.0,19382.0,0.57957479]
[1673640798971,0.52443616,19383.0,19382.0,0.27280555]
[1673640799237,1.031755,19385.0,19382.0,1.09551679]
[1673640799483,1.0532344,19386.0,19384.0,0.15328892]
[1673640799737,1.0532344,19386.0,19384.0,0.43797308]
[1673640799991,1.0532344,19386.0,19384.0,0.15328892]
[1673640801017,1.0532344,19386.0,19384.0,0.16528892]
[1673640801266,1.0862344,19386.0,19384.0,0.16528892]
[1673640801515,1.0862344,19386.0,19385.0,9.298e-05]
[1673640801769,1.0862344,19386.0,19385.0,0.1533819]
[1673640802019,0.04308377,19386.0,19385.0,1.29134082]
[1673640802276,0.01008377,19386.0,19385.0,2.22813117]
[1673640802516,0.04008377,19386.0,19385.0,2.23913117]
[1673640802762,0.01008377,19386.0,19385.0,2.22813117]
[1673640803252,0.04008377,19386.0,19385.0,2.00819778]
[1673640803505,0.04008377,19386.0,19385.0,2.07508148]
[1673640803506,0.01008377,19386.0,19385.0,2.07508148]
[1673640803749,0.01208377,19386.0,19385.0,2.52023989]
[1673640804491,0.01208377,19386.0,19385.0,2.13677834]
[1673640804977,0.01208377,19386.0,19385.0,2.52023989]
[1673640805696,0.01208377,19386.0,19385.0,2.65264034]
[1673640805939,0.01208377,19386.0,19385.0,3.03610189]
[1673640806972,0.0108754,19386.0,19385.0,2.19674656]
[1673640807184,0.0108754,19386.0,19385.0,2.19588728]
[1673640807463,0.0108754,19386.0,19385.0,2.77858128]
[1673640808212,0.0108754,19386.0,19385.0,2.32693]
[1673640808457,0.0108754,19386.0,19385.0,2.02093309]
[1673640808713,0.0108754,19386.0,19385.0,2.17394277]
[1673640808958,0.0108754,19386.0,19385.0,1.65808077]
[1673640810191,0.0108754,19386.0,19385.0,1.62037474]
[1673640810933,0.0108754,19386.0,19385.0,0.139]
[1673640810934,0.02019977,19386.0,19385.0,0.139]
[1673640811183,0.63603577,19386.0,19385.0,0.139]
[1673640811724,1.15187177,19386.0,19385.0,0.139]
[1673640811967,1.05187177,19386.0,19385.0,0.139]
[1673640812213,1.15187177,19386.0,19385.0,0.139]
[1673640814233,1.05187177,19386.0,19385.0,0.139]
[1673640814537,1.05187177,19386.0,19385.0,0.13909298]
[1673640815306,1.05187177,19386.0,19385.0,0.29210266]
[1673640815792,1.05187177,19386.0,19385.0,0.13909298]
[1673640816054,0.53603577,19386.0,19385.0,0.13909298]
[1673640816303,0.53603577,19386.0,19385.0,0.29210266]
[1673640816553,0.02019977,19386.0,19385.0,0.29210266]
[1673640817311,0.0108754,19386.0,19385.0,0.29210266]
[1673640817804,0.0108754,19386.0,19385.0,0.52160167]
[1673640818056,0.0108754,19386.0,19385.0,1.17786931]
[1673640818335,0.0108754,19386.0,19385.0,2.09960473]
[1673640818336,0.01061955,19386.0,19385.0,2.09960473]
[1673640818576,0.01061955,19386.0,19385.0,2.61546673]
[1673640819069,0.01061955,19386.0,19385.0,2.30946982]
[1673640819322,0.01061955,19386.0,19385.0,2.53184662]
[1673640819566,0.01061955,19386.0,19385.0,2.91469446]
[1673640819820,0.01061955,19386.0,19385.0,1.87557898]
[1673640820060,0.01061955,19386.0,19385.0,2.45736172]
[1673640821086,0.01061955,19386.0,19385.0,1.96397898]
[1673640821573,0.01061955,19386.0,19385.0,2.63306994]
[1673640821832,0.01061955,19386.0,19385.0,3.01585385]
[1673640822845,0.01061955,19386.0,19385.0,3.01592506]
[1673640823858,0.01061955,19386.0,19385.0,2.91592506]
[1673640824107,0.01061955,19386.0,19385.0,3.22215692]
[1673640824355,0.01061955,19386.0,19385.0,2.91592506]
[1673640824850,0.01061955,19386.0,19385.0,2.91566506]
[1673640825356,0.01061955,19386.0,19385.0,2.91557448]
[1673640825601,0.01061955,19386.0,19385.0,2.53280994]
[1673640825845,0.01061955,19386.0,19385.0,1.86371898]
[1673640826878,0.0081827,19386.0,19385.0,2.38995168]
[1673640827371,0.0081827,19386.0,19385.0,2.68995168]
[1673640828150,0.0061827,19386.0,19385.0,2.71014625]
[1673640828399,0.0061827,19386.0,19385.0,2.84914625]
[1673640829147,0.0061827,19386.0,19385.0,2.71014625]
[1673640829394,0.0061827,19386.0,19385.0,2.25121168]
[1673640829633,0.0061827,19386.0,19385.0,2.84895017]
[1673640829883,0.0061827,19386.0,19385.0,2.84899421]
[1673640830149,0.0061827,19386.0,19385.0,2.39021168]
[1673640830389,0.0061827,19386.0,19385.0,2.69021168]
[1673640830636,0.0061827,19386.0,19385.0,3.4289506]
[1673640830878,0.0061827,19386.0,19385.0,2.97012046]
[1673640831371,0.0061827,19386.0,19385.0,2.39021168]
[1673640831627,0.0061827,19386.0,19385.0,2.84904182]
[1673640832345,0.0061827,19386.0,19385.0,3.33197652]
[1673640832830,0.0061827,19386.0,19385.0,2.76014182]
[1673640834281,0.0061827,19386.0,19385.0,2.76029727]
[1673640834775,0.00491454,19386.0,19385.0,2.76029727]
[1673640835005,0.00491454,19386.0,19385.0,2.30131168]
[1673640835256,0.00491454,19386.0,19385.0,2.76029565]
[1673640836002,0.21521948,19386.0,19385.0,2.3759054]
[1673640836257,0.00491454,19386.0,19385.0,2.75868026]
[1673640836490,0.00491454,19386.0,19385.0,2.3759054]
[1673640838464,0.00491454,19386.0,19385.0,2.4648054]
[1673640838950,0.00491454,19386.0,19385.0,2.92401421]
[1673640839202,0.00491454,19386.0,19385.0,2.91901421]
[1673640840439,0.00491454,19386.0,19385.0,2.4365611]
[1673640840923,0.00491454,19386.0,19385.0,2.89597896]
[1673640841912,0.00491454,19386.0,19385.0,2.89539996]
[1673640844516,0.00395105,19386.0,19385.0,1.76999998]
[1673640845300,0.00395105,19386.0,19385.0,3.06175428]
[1673640845543,0.00395105,19386.0,19385.0,2.68513268]
[1673640848525,5e-08,19386.0,19385.0,2.68513268]
[1673640848779,0.01815711,19387.0,19386.0,0.1]
[1673640849031,0.01815711,19387.0,19386.0,2.81305398]
[1673640849760,0.01815711,19387.0,19386.0,2.95205398]
[1673640850289,6.9e-07,19389.0,19387.0,0.11815]
[1673640850557,0.01678622,19392.0,19388.0,2.5893607]
[1673640850860,0.01678622,19392.0,19390.0,0.4588116]
[1673640851038,0.01678622,19392.0,19390.0,0.9850443]
[1673640851302,0.01678622,19392.0,19391.0,3.10260707]
[1673640851550,0.00758996,19397.0,19392.0,0.1]
[1673640851800,0.00895962,19395.0,19394.0,0.15282383]
[1673640852061,0.00758996,19397.0,19394.0,1.2388206]
[1673640852062,0.00834717,19396.0,19394.0,1.2388206]
[1673640852301,0.00758996,19397.0,19394.0,1.2388206]
[1673640852561,0.00758996,19397.0,19394.0,1.167095]
[1673640852562,0.00861309,19395.0,19394.0,1.167095]
[1673640852803,0.00861309,19395.0,19394.0,1.270246]
[1673640853552,0.00758996,19397.0,19394.0,1.270246]
[1673640853795,0.0186314,19397.0,19394.0,1.170246]
[1673640854046,0.0186314,19397.0,19395.0,0.1]
[1673640854316,0.0186314,19397.0,19396.0,0.51557]
[1673640854567,0.0186314,19397.0,19396.0,1.03114]
[1673640855054,0.0186314,19397.0,19396.0,1.03158932]
[1673640855298,0.0092153,19396.0,19395.0,0.515571]
[1673640855566,0.1240653,19396.0,19394.0,0.515601]
[1673640855839,0.41405494,19396.0,19392.0,0.22942575]
[1673640856096,0.30911287,19395.0,19392.0,1.031521]
[1673640856341,0.30911287,19395.0,19394.0,6e-05]
[1673640856592,0.00990793,19395.0,19394.0,6e-05]
[1673640857369,0.00990793,19395.0,19392.0,0.515796]
[1673640857602,0.22021287,19395.0,19392.0,0.515796]
[1673640857849,0.22021287,19395.0,19392.0,0.00012]
[1673640857850,0.00990793,19395.0,19392.0,0.00012]
[1673640858095,0.00990793,19395.0,19394.0,0.14]
[1673640858414,0.01767246,19397.0,19394.0,1.031246]
[1673640858593,0.01767246,19397.0,19394.0,0.57037377]
[1673640858838,0.01767246,19397.0,19395.0,0.59569845]
[1673640859084,0.01767246,19397.0,19395.0,1.11128045]
[1673640859335,0.01767246,19397.0,19395.0,1.62687645]
[1673640860333,0.00752336,19397.0,19395.0,1.62687645]
[1673640860835,0.00752336,19397.0,19395.0,1.76687645]
[1673640861101,0.00752336,19397.0,19395.0,1.8561122]
[1673640861355,0.00752336,19397.0,19396.0,0.63026127]
[1673640861582,0.00752336,19397.0,19396.0,1.66140127]
[1673640864535,0.00752336,19397.0,19396.0,1.14589127]
[1673640864770,0.00752336,19397.0,19396.0,1.28663127]
[1673640865030,0.00752336,19397.0,19396.0,1.66100127]
[1673640865267,0.00752336,19397.0,19396.0,1.80100127]
[1673640865501,0.00752336,19397.0,19396.0,1.66100127]
[1673640865735,0.00752336,19397.0,19396.0,1.80200127]
[1673640866013,0.00752336,19397.0,19396.0,1.66100127]
[1673640866264,0.00752336,19397.0,19396.0,1.80100127]
[1673640866508,0.00752336,19397.0,19396.0,1.95372798]
[1673640867010,0.00752336,19397.0,19396.0,1.9541773]
[1673640867514,0.00752336,19397.0,19396.0,1.8141773]
[1673640867757,0.00752336,19397.0,19396.0,1.87539822]
[1673640868001,0.00752336,19397.0,19396.0,2.07990448]
[1673640868249,0.00752336,19397.0,19396.0,3.18560566]
[1673640868501,0.00752336,19397.0,19396.0,2.65937296]
[1673640868754,0.00752336,19397.0,19396.0,2.65931296]
[1673640869509,0.00752336,19397.0,19396.0,2.68387074]
[1673640869790,0.00752336,19397.0,19396.0,2.8916862]
[1673640870013,0.00677103,19397.0,19396.0,2.7814516]
[1673640870256,0.00677103,19397.0,19396.0,3.08642114]
[1673640870784,0.00677103,19397.0,19396.0,3.46722091]
[1673640871040,0.21707597,19397.0,19396.0,2.37292863]
[1673640871268,0.00677103,19397.0,19396.0,2.89916133]
[1673640871518,0.00677103,19397.0,19396.0,2.52545548]
[1673640872531,0.00677103,19397.0,19396.0,2.06847644]
[1673640872767,0.00677103,19397.0,19396.0,2.59470914]
[1673640873035,0.00677103,19397.0,19396.0,2.83606152]
[1673640874271,0.00677103,19397.0,19396.0,3.43898292]
[1673640874518,0.00677103,19397.0,19396.0,3.05766094]
[1673640875018,0.00677103,19397.0,19396.0,2.2896314]
[1673640876258,0.00677103,19397.0,19396.0,1.68171]
[1673640876502,0.01572578,19397.0,19396.0,1.16614]
[1673640876751,0.01572578,19397.0,19396.0,0.65057]
[1673640878566,0.01572578,19397.0,19396.0,0.65101932]
[1673640880029,0.01572578,19397.0,19396.0,0.65057]
[1673640880543,0.01572578,19397.0,19396.0,0.14]
[1673640880784,0.86023678,19399.0,19396.0,0.14]
[1673640881090,0.94912078,19399.0,19396.0,0.14]
[1673640881309,9.298e-05,19398.0,19396.0,0.14]
[1673640881571,0.324425,19397.0,19396.0,0.14]
[1673640881827,0.324425,19397.0,19395.0,6e-05]
[1673640881828,1.444411,19397.0,19395.0,6e-05]
[1673640882071,0.316427,19396.0,19395.0,6e-05]
[1673640882360,0.1889,19396.0,19395.0,6e-05]
[1673640882831,0.70446,19397.0,19395.0,6e-05]
[1673640883078,0.704461,19397.0,19395.0,6e-05]
[1673640883323,0.001,19396.0,19395.0,0.11606]
[1673640883820,0.0889,19397.0,19395.0,0.515656]
[1673640884075,0.01572098,19398.0,19395.0,1.031252]
[1673640884587,0.01572098,19398.0,19396.0,0.70547216]
[1673640885412,0.01572098,19398.0,19395.0,1.074221]
[1673640885900,0.01572098,19398.0,19395.0,1.28141929]
[1673640886169,0.01572098,19398.0,19396.0,0.63090165]
[1673640886642,0.02572098,19398.0,19396.0,0.63090165]
[1673640886892,0.01572098,19398.0,19396.0,0.63090165]
[1673640887142,0.02472098,19398.0,19396.0,0.63590165]
[1673640887387,0.01572098,19398.0,19395.0,1.41245379]
[1673640887635,0.74154492,19398.0,19396.0,0.043]
[1673640887916,0.53123998,19398.0,19396.0,0.043]
[1673640888428,0.63123998,19398.0,19395.0,0.515634]
[1673640889415,0.63123998,19398.0,19395.0,0.66808152]
[1673640889899,0.64023998,19398.0,19396.0,0.005]
[1673640890144,0.53123998,19398.0,19395.0,0.66808152]
[1673640890388,0.02572098,19398.0,19396.0,0.79826075]
[1673640890600,0.01572098,19398.0,19396.0,0.79826075]
[1673640890853,0.02472098,19398.0,19396.0,0.80326075]
[1673640891579,0.009,19398.0,19396.0,0.80326075]
[1673640892061,0.009,19398.0,19396.0,1.31882675]
[1673640894335,0.009,19398.0,19396.0,1.54761702]
[1673640894577,0.009,19398.0,19396.0,0.15744752]
[1673640894813,1.20847227,19397.0,19396.0,0.005]
[1673640895129,2.04844027,19397.0,19396.0,0.005]
[1673640895329,2.86398327,19397.0,19396.0,0.005]
[1673640895811,2.86398327,19397.0,19396.0,0.00506]
[1673640896067,2.86398327,19397.0,19396.0,6e-05]
[1673640896299,2.87398327,19397.0,19396.0,6e-05]
[1673640896792,3.22809106,19397.0,19396.0,6e-05]
[1673640897048,3.21809106,19397.0,19396.0,6e-05]
[1673640897306,3.22709106,19397.0,19396.0,0.00906]
[1673640897847,3.22709106,19397.0,19396.0,6e-05]
[1673640897848,3.21809106,19397.0,19396.0,6e-05]
[1673640898112,3.23859106,19397.0,19396.0,6e-05]
[1673640898356,3.23859106,19397.0,19395.0,6e-05]
[1673640898357,0.1,19396.0,19395.0,6e-05]